Cogmind - Beta 17 @@@ ROGUE MODE // 2026.08.05 @ 19:54:26 Player: 4R-ZE3 Result: Destroyed by PW-TUN(R) with Subdweller Beam Cannon Performance ------------- Evolutions (0) 0 Regions Visited (2) 400 Robots Destroyed (26) 130 Value Destroyed (590) 590 Prototype IDs (0) 0 Alien Tech Used (0) 0 Bonus (0) 0 TOTAL SCORE: 1120 Bonus ------- None Cogmind --------- Core Integrity 0/250 Matter 281/300 Energy 250/250 System Corruption 0% Temperature Cool (9) Movement Core (1450) Ox28 Location -10/Subcaves Parts ------- > --- POWER (1) -------- Ion Engine > --- PROPULSION (2) --- (None) > --- UTILITY (2) ------ Disposable Heat Sink Huge Storage Unit > --- WEAPON (2) ------- Light Assault Rifle > --- INVENTORY (25) --- Light Ion Engine Subdweller Power Source Light Treads Improved Aluminum Leg Improved Aluminum Leg Improved Aluminum Leg Improved Aluminum Leg Heat Sink Signal Interpreter Core Shielding Peak State ------------ > --- POWER ------------ Light Nuclear Core > --- PROPULSION ------- Wheel Wheel > --- UTILITY ---------- Disposable Heat Sink Huge Storage Unit > --- WEAPON ----------- Particle Gun Assault Rifle > --- INVENTORY -------- Ion Engine Light Ion Engine Subdweller Power Source Light Treads Light Treads Light Treads Improved Aluminum Leg Improved Aluminum Leg Improved Aluminum Leg Improved Aluminum Leg Heat Sink Signal Interpreter Core Shielding Medium Laser Light Assault Rifle Light Assault Rifle [Rating: 13] Favorites ----------- Power Ion Engine Engine Ion Engine Power Core Light Nuclear Core Propulsion Light Treads Treads Light Treads Wheel Wheel Utility Huge Storage Unit Device Disposable Heat Sink Storage Huge Storage Unit Protection Light Armor Plating Weapon Light Assault Rifle Energy Gun Medium Laser Ballistic Gun Light Assault Rifle Build | -11 -10 -10 ------- Run | Yrd Mat Sub Slots Evolved . | . . . Power . | . . . Propulsion . | . . . Utility . | . . . Weapon . | . . . Parts Attached 18 | 7 6 5 Power 2 | 1 1 . Engine 1 | 1 . . Core 1 | . 1 . Reactor . | . . . Propulsion 5 | 2 2 1 Treads 3 | 2 . 1 Leg . | . . . Wheel 2 | . 2 . Hover . | . . . Flight . | . . . Utility 5 | 1 3 1 Device 2 | . 1 1 Storage 2 | 1 1 . Processor . | . . . Hackware . | . . . Protection 1 | . 1 . Artifact . | . . . Weapon 6 | 3 . 3 Energy Gun 2 | 1 . 1 Energy Cannon . | . . . Ballistic Gun 4 | 2 . 2 Ballistic Cannon . | . . . Launcher . | . . . Special Weapon . | . . . Impact Weapon . | . . . Slashing Weapon . | . . . Piercing Weapon . | . . . Special Melee Weapon . | . . . Unidentified Prototypes . | . . . Parts Lost 11 | . . 11 Power 1 | . . 1 Propulsion 4 | . . 4 Utility 1 | . . 1 Weapon 5 | . . 5 Highest Loss Streak 7 | . . 7 To Critical Strikes . | . . . Average Backups 10 | 2 9 12 Power 1 | . 1 2 Propulsion 4 | 1 3 5 Utility 2 | . 2 3 Weapon 2 | . 2 1 Tool/Special . | . . . Unused Backups 8 | . . 8 Power 2 | . . 2 Propulsion 4 | . . 4 Utility 2 | . . 2 Weapon . | . . . Tool/Special . | . . . Average Slot Usage (%) 96 | . 96 97 Engine 9 | . 8 10 Core 4 | . 5 3 Treads 17 | . 15 19 Wheel 9 | . 12 6 Device 5 | . 1 11 Storage 14 | . 14 14 Protection 6 | . 8 2 Energy Gun 4 | . . 11 Ballistic Gun 23 | . 28 16 Peak Build Rating 13 | 6 11 13 Average Rating 8 | 4 8 9 On Entrance 5 | . 6 11 Avg Prop Armor Cover (%) . | . . . Naked Turns . | . . . Heaviest Build 91 | 14 91 91 Greatest Support 40 | 40 40 40 Greatest Overweight (x) 9 | . 4 9 Average Overweight (x) 1 | . 1 2 Largest Inventory Capacity 25 | 8 25 25 Average Capacity 18 | 7 15 25 Most Carried 18 | 5 17 18 Average Carried 10 | 2 9 12 Final Capacity 25 | 8 25 25 Final Carried 17 | 4 17 10 Class Distribution -------------------- 100% | Mutant Dominant Class ---------------- Mutant | -10/Materials Mutant | -10/Subcaves Resources | -11 -10 -10 ----------- Run | Yrd Mat Sub Matter Collected 602 | 117 437 48 Remotely . | . . . Salvage Created 792 | . 634 158 Parts 46 | . 34 12 Haulers Intercepted 1 | . 1 . Recyclers Shooed . | . . . Parts Field Recycled . | . . . Retrieved Matter . | . . . Parts Self-Destructed 10 | . . 10 Prevented . | . . . Parts Restored . | . . . Kills | -11 -10 -10 ------- Run | Yrd Mat Sub Combat Hostiles Destroyed 22 | . 17 5 Guns 22 | . 17 5 Classes Destroyed 6 | . 4 2 Worker 1 | . 1 . Hauler 1 | . 1 . Turret 2 | . . 2 Swarmer 10 | . 6 4 Grunt 11 | . 11 . Subdweller 1 | . . 1 Best Kill Streak 6 | . 4 6 Combat Bots Only 4 | . 4 4 Max Kills in Single Turn 2 | . 1 2 Gunslinging 1 | . . 1 Exploded . | . . . Melee . | . . . Uniques/NPCs Destroyed . | . . . Combat | -11 -10 -10 -------- Run | Yrd Mat Sub Hostile Shots Fired 193 | . 70 123 Missed 61 | . 18 43 Hits 132 | . 52 80 Projectile 132 | . 52 80 Critical Strikes 1 | . . 1 Damage Taken 1469 | . 554 915 Core 258 | . 95 163 Absorbed by Shields . | . . . Core Remaining (%) 100 | 100 . . Volleys Fired 93 | . 58 35 Largest 2 | . 2 2 Hottest 115 | . 40 115 Shots Fired 179 | . 116 63 Gun 179 | . 116 63 Cannon . | . . . Launcher . | . . . Special . | . . . Kinetic 143 | . 116 27 Thermal 36 | . . 36 Explosive . | . . . Electromagnetic . | . . . Robot Hit Streak 19 | . 9 19 Robot Miss Streak 4 | . 4 3 Penetration Max . | . . . Secondary Targets 4 | . 1 3 Max Gunslinging Chain 1 | . 1 1 Shots Hit Robots 125 | . 74 51 Core Hits 51 | . 33 18 Critical Kills . | . . . Critical Parts Destroyed 1 | . 1 . Critical Strikes 3 | . 1 2 Burn 2 | . . 2 Destroy 1 | . 1 . Melee Attacks . | . . . Impact . | . . . Slashing . | . . . Piercing . | . . . Sneak Attacks . | . . . Combat Hostiles . | . . . Follow-up Attacks . | . . . Damage Inflicted 1373 | . 823 550 Guns 1373 | . 823 550 Cannons . | . . . Explosions . | . . . Melee . | . . . Ramming . | . . . Kinetic 1021 | . 823 198 Thermal 352 | . . 352 Explosive . | . . . Electromagnetic . | . . . Impact . | . . . Slashing . | . . . Piercing . | . . . Highest Corruption . | . . . Average Corruption . | . . . Corruption Purged . | . . . Corruption Blocked . | . . . Overload Shots . | . . . Overflow Damage . | . . . Projectiles . | . . . Explosions . | . . . Melee . | . . . Knockbacks . | . . . Impact . | . . . Kinetic . | . . . Secondary . | . . . Self-Inflicted Damage . | . . . Shots . | . . . Rammed . | . . . Targets Rammed . | . . . Kicked . | . . . Crushed . | . . . Highest Temperature 53 | . 33 53 Average Temperature 11 | . 9 28 Received Heat Transfer 498 | . 249 249 Siege Activations . | . . . Martial Activations . | . . . Shielding Activations . | . . . Robots Disrupted . | . . . Combat Hostiles . | . . . Robots Corrupted . | . . . Combat Hostiles . | . . . Parts Fried . | . . . Impact Corruptions . | . . . Robots Melted . | . . . Combat Hostiles . | . . . Parts Melted 1 | . . 1 Heat Transferred 1110 | . . 1110 Parts Sabotaged . | . . . Parts Stolen . | . . . Parts Stripped . | . . . Power Chain Reactions . | . . . Alert | -11 -10 -10 ------- Run | Yrd Mat Sub Maximum Alert Level 1 | . 1 . Low Security (%) 93 | 100 92 . Level 1 6 | . 7 . Level 2 . | . . . Level 3 . | . . . Level 4 . | . . . Level 5 . | . . . High Security . | . . . Max Security . | . . . Peak Influence 226 | . 226 . Initial . | . . . Average 104 | . 113 . Influence Increases 606 | . 456 150 Destroy 0b10 Robot/C 460 | . 340 120 Destroy 0b10 Robot/NC 10 | . 10 . Destroy Leader 62 | . 62 . Successful Hack 14 | . 14 . Lose Combat Pursuer 60 | . 30 30 Influence Decreases 606 | . 326 280 Entered New Map 63 | . . 63 Time Decay 486 | . 326 160 Lost Part 57 | . . 57 Squads Dispatched 3 | . 3 . Investigation 1 | . 1 . Extermination . | . . . Reinforcement 2 | . 2 . Assault . | . . . Garrison . | . . . Intercept . | . . . Searches Triggered . | . . . Construction Impeded . | . . . Haulers Reinforced . | . . . Active Scanning Responses . | . . . Cargo Convoy Interrupts . | . . . Stealth | -11 -10 -10 --------- Run | Yrd Mat Sub Distress Signals 3 | . 3 . Communications Jammed . | . . . Distress Signals . | . . . Times Spotted 45 | . 34 11 Peak Tracking Total 6 | . 6 6 Tactical Retreats 4 | . 2 2 Traps | -11 -10 -10 ------- Run | Yrd Mat Sub Traps Triggered 1 | . 1 . Indirectly . | . . . Trap Hack Attempts . | . . . Triggered . | . . . Disarmed . | . . . Reprogrammed . | . . . Reused . | . . . Traps Extracted . | . . . Installed . | . . . Triggered . | . . . Machines | -11 -10 -10 ---------- Run | Yrd Mat Sub Machines Disabled . | . . . Max in Single Turn . | . . . Machines Repaired . | . . . Machines Dismantled . | . . . Machines Sabotaged . | . . . Overloaded Fab Kills . | . . . Hacking | -11 -10 -10 --------- Run | Yrd Mat Sub Machines Accessed 6 | . 6 . Terminals 4 | . 4 . Fabricators . | . . . Repair Stations . | . . . Recycling Units 2 | . 2 . Scanalyzers . | . . . Garrison Access . | . . . Total Hacks 15 | . 15 . Successful 7 | . 7 . Failed 8 | . 8 . Catastrophic 1 | . 1 . Database Lockouts . | . . . Manual 9 | . 9 . Terminals 13 | . 13 . Fabricators . | . . . Repair Stations . | . . . Recycling Units 2 | . 2 . Scanalyzers . | . . . Garrison Access . | . . . Terminal Hacks 2 | . 2 . Robot Analysis 2 | . 2 . Fabricator Hacks . | . . . Repair Station Hacks . | . . . Recycling Unit Hacks 2 | . 2 . Retrieve Components 2 | . 2 . Scanalyzer . | . . . Garrison Access Hacks . | . . . Unauthorized Hacks 3 | . 3 . Terminals 3 | . 3 . Botnet 3 | . 3 . Fabricators . | . . . Repair Stations . | . . . Recycling Units . | . . . Scanalyzers . | . . . Garrison Access . | . . . Data Cores Recovered . | . . . Used . | . . . Hacking Detections 4 | . 4 . Full Trace Events . | . . . Feedback Events . | . . . Feedback Blocked . | . . . Robot Schematics Acquired . | . . . Robots Built . | . . . Authchips . | . . . Time . | . . . Total Robot Build Rating . | . . . Part Schematics Acquired . | . . . Parts Built . | . . . Authchips . | . . . Time . | . . . Total Part Build Rating . | . . . Part Studies Acquired . | . . . Parts Repaired . | . . . Time . | . . . Parts Recycled . | . . . Recycled Matter . | . . . Retrieved Matter . | . . . Retrieved Components 10 | . 10 . Parts Scanalyzed . | . . . Part Schematics Acquired . | . . . Parts Damaged . | . . . Bothacking | -11 -10 -10 ------------ Run | Yrd Mat Sub Used RIF Installer . | . . . Robots Hacked . | . . . Non-combat . | . . . Combat . | . . . Robot Hacks Applied . | . . . Relay Couplers Released . | . . . Fabnet Peak Effective % . | . . . Robots Rewired . | . . . Allies Hacked . | . . . Hacks Repelled . | . . . Allies | -11 -10 -10 -------- Run | Yrd Mat Sub Total Allies . | . . . Largest Group . | . . . Highest-Rated Group . | . . . Highest-Rated Ally . | . . . Total Orders . | . . . Ally Attacks . | . . . Total Damage . | . . . Kills . | . . . Allies Corrupted . | . . . Allies Melted . | . . . Intel | -11 -10 -10 ------- Run | Yrd Mat Sub Active Infowar (turns) . | . . . Robot Analysis Total 2 | . 2 . Derelict Logs Recovered . | . . . Drone Launches . | . . . Drone Recoveries . | . . . Exploration | -11 -10 -10 ------------- Run | Yrd Mat Sub Turns Passed 1653 | 77 919 657 Spaces Moved 659 | 41 433 185 Core 2 | 2 . . Treads 407 | 39 234 134 Legs . | . . . Wheels 250 | . 199 51 Hover . | . . . Flight . | . . . Fastest Speed 50 | 50 140 140 Average Speed 184 | 154 150 271 Slowest Speed 480 | 160 160 480 Overloaded Moves . | . . . Propulsion Burnouts . | . . . Robots Hopped . | . . . Potential Cave-ins . | . . . Cave-ins Triggered . | . . . Exploration Rate (%) 30 | 3 77 10 Regions Visited 2 Branch Regions 1 Pre-discovered Areas . | . . . Known Exits Taken . | . . . Unknown Exits Taken 2 | 1 1 . Scrap Searched . | . . . Spaces Dug . | . . . Terrain Destroyed . | . . . Melee . | . . . Projectile . | . . . AOE . | . . . Terrain Rammed . | . . . Walls Destroyed . | . . . Machines Disabled . | . . . Actions | -11 -10 -10 --------- Run | Yrd Mat Sub Total 927 | 52 593 282 Wait 135 | . 82 53 Move 657 | 40 432 185 Hop . | . . . Pick Up 19 | 5 13 1 Fast Attach 6 | 5 1 . Attach 9 | 1 . 8 Detach . | . . . Swap 6 | 1 5 . Drop 2 | . 2 . Fire 93 | . 58 35 Melee . | . . . Ram . | . . . Kick . | . . . Crush . | . . . Escape Stasis . | . . . Rewire . | . . . Trap . | . . . Miscellaneous . | . . . Route ------- -11/Scrapyard -10/Materials (discovered 4 exits: [*Mat x2] / [*Min] / [*Sub]) -10/Subcaves (discovered 3 exits: [*Mat x2] / [*Rec]) History --------- Turn | Location | Event 51 | -11/Scrapyard | Discovered new exit (range 15) 78 | -11/Scrapyard | Entered Materials 312 | -10/Materials | Build established: Mutant 373 | -10/Materials | Discovered new exit (range 15) 748 | -10/Materials | Discovered new exit (range 13) 836 | -10/Materials | Discovered new exit (range 10) 989 | -10/Materials | Discovered new exit (range 7) 997 | -10/Materials | Entered Subcaves 998 | -10/Subcaves | Approached by a straggling Scientist 1064 | -10/Subcaves | Discovered new exit (range 7) 1096 | -10/Subcaves | Shifting Twisted Machinery released Flamer 1097 | -10/Subcaves | Shifting Twisted Machinery released Sub. Power Source 1116 | -10/Subcaves | Discovered new exit (range 13) 1116 | -10/Subcaves | Discovered new exit (range 15) 1140 | -10/Subcaves | Core integrity fell below 50% 1188 | -10/Subcaves | Lost 7 parts (1p2n1u3w) 1597 | -10/Subcaves | A Subdweller sparked back to life 1644 | -10/Subcaves | Core integrity fell below 20% 1654 | -10/Subcaves | Destroyed by PW-TUN(R) with Subdweller Beam Cannon Last Messages --------------- 01375_ C9-RIT(u) tweaks Twisted Machinery. V0-IO6(c): "I think it's somewhere northwest of here" 01406_ C9-RIT(u) tweaks Twisted Machinery. V0-IO6(c): "I think it's somewhere northwest of here" V0-IO6(c): "I think it's somewhere west of here" 01597_ 33-GML(R) creaks and sparks as it begins to move. 01598_ Lgt. Treads destroyed. V0-IO6(c): "I think it's somewhere west of here" 01629_ 33-GML(R) suffers critical hit (Burn). 01632_ Lgt. Treads destroyed. 01634_ Med. Laser destroyed. 01641_ 33-GML(R) destroyed. 01641_ Switching to secondary target: PW-256(R). 01642_ PW-TUN(R): "WEHOME!" 01645_ Subatomizers dissect the Sub. Machine Gun. 01650_ Lgt. Assault Rifle destroyed. Map ----- +----------------------------------------------------+ | ?????????????????????????????????????????????????? | | ?????????????????????????????????????????????????? | | ?????????????????????????????????????????????????? | | ?????????????????????????????????????????????????? | | ?????????????????????????????????????????????????? | | ?????????????????????????????????????????????????? | | ?????????????????????????????????????????????????? | | ?????????????????????????????????????????????????? | | #######???????#??????????????????????????????????? | | ##????? #??????????????????????????????????? | | ##### ???????????????????????????????????? | | ?????????????????????????????????? | | " #??????????????????????????????????? | | " #???????????????????????????????????????? | | " #######?????????????????????????????????? | | ## " ##????????????????????????????????? | | ### ##???????????????????????????????? | | #### #???????????????????????????????? | | ""## ###?????????????????????????????? | | """ ### # ?????????????????????????????? | | """ ##??# ????????????????? #???????????? | | "# ###??## ??????????????? " ???????????? | | " " #??### ?????????????? &" #????????????? | | "" #??# ###?######??? ##?????????????? | | #"" ##?? # ### ##% #?????????????? | | # ##??# # ###@RR% #??????????????? | | ## #### #?### ## ##??????????????? | | #### ## ###????##????????????????????? | | #??## #????????????????????????????? | | #???# ##????????????????????????????? | | ####???# ##?????????????????????????????? | | ???????# ## ##??????????????????????????????? | | ???????# ### #???????????????????????????????? | | ##?????## #?# #??????????????????????????????? | | #??????# ##?# #?????????????????????????????? | | ####???###??# #?????????????????????????????? | | #????????## ##?????????????????????????????? | | ##?????????#####??????????????????????????????? | | # ##????????????????????????????????????????????? | | ## #????????????????????????????????????????????? | | ?# #????????????????????????????????????????????? | | ?# #????????????????????????????????????????????? | | ?####????????????????????????????????????????????? | | ?????????????????????????????????????????????????? | | ?????????????????????????????????????????????????? | | ?????????????????????????????????????????????????? | | ?????????????????????????????????????????????????? | | ?????????????????????????????????????????????????? | | ?????????????????????????????????????????????????? | | ?????????????????????????????????????????????????? | +----------------------------------------------------+ Best States ------------- Heat Dissipation 35 Coolant Potential 50 Energy Generation 14 Energy Capacity 250 Matter Stores 300 Matter Capacity 300 Sight Range 16 Terrain Scan Density 10 Armor Coverage 150 Evasion (%) 40 Recoil Reduction 2 Item Schematics ----------------- None Robot Schematics ------------------ None Fabricated ------------ Nothing Repaired ---------- Nothing Studied --------- None Alien Tech Used ----------------- None Achievements -------------- None Challenges ------------ None Game ------ Seed TerrainZioniteMegatreads Manual? 0 Play Time 00:14:12 Cumulative 175.2 hours Start 2026.08.05 @ 19:43:07 End 2026.08.05 @ 19:54:26 Sessions 1 Manual Loads 0 Difficulty Rogue Special Mode None Game No. 182 Rogue 128 Adventurer 54 Explorer 0 Win Type - Total 8 Types 4/0/1/1/0/0/0/1/0/1 Lore% 65 Gallery% 58 Achievement% 55 Wizard Run 0 Options --------- Layout 1 ASCII 0 Keyboard 1 Movement Numpad Keybinds 1 Fullscreen 2 Font 32/Tamsyn Map View 50x35 Zoom Use 0% Tactical HUD 1 Map Filters NONE Filters NONE Steam 1 RUN: 14cd2dec-0c7f-4963-9bef-5557a5d72886